Workbook

Sheet Лист1
A1: 1 | B1: =IF(A27>1,2,"") -> 2 | C1: =IF(A28>1,3,"") -> 3 | D1: =IF(A29>1,4,"") -> 4 | E1: =IF(A30>1,5,"") -> 5 | F1: =IF(A31>1,6,"") -> 6 | G1: =IF(A32,7,"") -> 7 | H1: =IF(A33>1,8,"") ->  | I1: =IF(A34>1,9,"") ->  | J1: =IF(A35>1,10,"") -> 
A2: =IF(A26>1,A26,"") -> 398978 | B2: =C26&"/"&D26 -> 5/10 | I2: =IF(I26>1,I26,"") -> 27.820087 | J2: =IF(J26="",C2,J26) -> MEGAGRES | K2: =IF(K26="",D2,K26) -> ANKARA BR6005
A3: 389617 | B3: 5/10 | I3: =IF(I27>1,I27,"") -> 20.599989 | J3: =IF(J27="",C3,J27) -> PAMESA | K3: =IF(K27="",D3,K27) -> COWAN LIGHT
A4: 398978 | B4: 5/10 | I4: =IF(I28>1,I28,"") -> 27.820087 | J4: MEGAGRES | K4: ANKARA BR6005
A5: 124627 | B5: 5/10 | I5: =IF(I29>1,I29,"") -> 26.319984 | J5: CERSANIT плитка | K5: Грес А 100 сходинка ST**
A6: 370395 | B6: 5/10 | I6: =IF(I30>1,I30,"") -> 18.819999 | J6: GOLDEN TILE | K6: ETHNO Мікс Н8Б280
A7: 369687 | B7: 5/10 | I7: =IF(I31>1,I31,"") -> 20.599989 | J7: PAMESA | K7: RLV. COWAN DARK
A8: 370393 | B8: 5/10 | I8: =IF(I32>1,I32,"") -> 18.819999 | J8: GOLDEN TILE | K8: ETHNO Мікс Н8Б260
I9: =IF(I33>1,I33,"") ->  | J9: 0 | K9: 0
I10: =IF(I34>1,I34,"") ->  | J10: 0 | K10: 0
I11: =IF(I35>1,I35,"") ->  | J11: 0 | K11: 0
A12: НОМЕР РАХУНКУ | B12: 206513 | C12: Доставка | D12: Самовивіз | E12: Курєр | F12: Партенрська адресна доставка | G12: Нова Пошта | H12: Курєр + підйом на поверх | I12: За домовленістю | J12: Самовивіз
C13: Вартість доставки
A14: =A14:G31 -> #VALUE! | B14: Кількість | C14: Вибери од.вим. | D14: м2 | E14: Ціна | F14: Ціна зі знижкою | G14: Розмір знижки | H14: шт | I14: пак
A15: м2 | B15: 12 | C15: м2 | D15: =IFERROR(IF(AND(C15="шт",E26="шт"),B15,IF(C15="шт",(F26/G26)*B15,IF(C15="м2",H15*(F26/G26),IF(C15="компл",B15*1,IF(C15="пак",(B15*F26)))))),B15) -> 12.24 | E15: =IF(AND(C15="шт",E26="шт"),B26*D15,IF(C15="шт",((F26/G26)*B15)*B26,IF(C15="м2",D15*B26,IF(C15="компл",B15*B26,IF(C15="пак",D15*B26))))) -> 660.96 | F15: =IFERROR((E15/100)*(100-G15),((B26/100)*(100-G15))) -> 660.96 | H15: =IF(C15="м2",ROUNDUP((B15/F26)*G26,0)) -> 34 | I15: =IFERROR(IF(C15="м2",ROUNDDOWN(H15/G26,0),IF(OR(C15="компл",OR(C15="пак",OR(C15="шт"))),B15)),"") -> 8 | J15: =IFERROR(IF(C15="м2",CONCATENATE(I15," пак ",H15-(I15*G26)," шт"),IF(C15="шт",CONCATENATE(I15," шт"),IF(C15="пак",CONCATENATE(I15," пак"),IF(C15="компл",CONCATENATE(I15," компл"),)))),E2) -> 8 пак 2 шт | K15: =IF(B15="","",F15/D15) -> 54
A16: пак | B16: 55 | C16: м2 | D16: 55.04 | E16: 4623.36 | F16: 4623.36 | H16: 301 | I16: 43 | J16: 43 пак 0 шт | K16: =IF(B16="","",F16/D16) -> 84
A17: шт | B17: 12 | C17: м2 | D17: 12.24 | E17: 1358.64 | F17: 1358.64 | H17: 34 | I17: 8 | J17: 8 пак 2 шт | K17: 111
A18: компл | B18: 30 | C18: м2 | D18: 30 | E18: 7620 | F18: 7620 | H18: 540 | I18: 30 | J18: 30 пак 0 шт | K18: 254
B19: 58 | C19: м2 | D19: 58 | E19: 128818 | F19: 128818 | H19: 1740 | I19: 58 | J19: 58 пак 0 шт | K19: 2221
B20: 44 | C20: м2 | D20: 44.06857143 | E20: 19874.92571 | F20: 19874.92571 | H20: 241 | I20: 34 | J20: 34 пак 3 шт | K20: 451
B21: 22 | C21: м2 | D21: 22 | E21: 5104 | F21: 5104 | H21: 660 | I21: 22 | J21: 22 пак 0 шт | K21: 232
C22: м2 | D22: 0 | F22: 0 | J22: 0
C23: м2 | D23: 0 | F23: 0 | J23: 0
C24: м2 | D24: 0 | F24: 0 | J24: 0
A25: Код | B25: Базова ціна, грн. | C25: Знижка баз., % | D25: Знижка баз. опт., % | E25: Од. вим. | F25: м2/уп | G25: шт/уп
A26: 398978 | B26: 54 | C26: =VLOOKUP(A26,$A$38:$K$70556,6,FALSE) -> 5 | D26: =VLOOKUP(A26,$A$38:$K$70556,7,FALSE) -> 10 | E26: =VLOOKUP(A26,$A$38:$K$70556,8,FALSE) -> м2 | F26: =VLOOKUP(A26,$A$38:$K$161522,9,FALSE) -> 1.44 | G26: =VLOOKUP(A26,$A$38:$K$70556,10,FALSE) -> 4 | H26: =CONCATENATE(VLOOKUP(A26,$A$38:$K$70556,5,FALSE),"/",E26) -> /м2 | I26: =VLOOKUP(A26,$A$38:$K$70556,11,FALSE) -> 27.820087 | J26: =IFERROR(VLOOKUP(A26,$A$38:$K$120556,2,FALSE),"") -> MEGAGRES | K26: =IFERROR(VLOOKUP(A26,$A$38:$K$120556,3,FALSE),"") -> ANKARA BR6005
A27: 389617 | B27: 84 | C27: 5 | D27: 10 | E27: м2 | F27: =VLOOKUP(A27,$A$38:$K$161522,9,FALSE) -> 1.28 | G27: 7 | H27: /м2 | I27: 20.599989 | J27: PAMESA | K27: COWAN LIGHT
A28: 398978 | B28: 111 | C28: 5 | D28: 10 | E28: м2 | F28: =VLOOKUP(A28,$A$38:$K$169622,9,FALSE) -> 1.44 | G28: 4 | H28: /м2 | I28: 27.820087 | J28: MEGAGRES | K28: ANKARA BR6005
A29: 124627 | B29: 254 | C29: 5 | D29: 10 | E29: шт | F29: =VLOOKUP(A29,$A$38:$K$161522,9,FALSE) -> 1 | G29: 18 | H29: /шт | I29: 26.319984 | J29: CERSANIT плитка | K29: Грес А 100 сходинка ST**
A30: 370395 | B30: 2221 | C30: 5 | D30: 10 | E30: шт | F30: 1 | G30: 30 | H30: /шт | I30: 18.819999 | J30: GOLDEN TILE | K30: ETHNO Мікс Н8Б280
A31: 369687 | B31: 451 | C31: 5 | D31: 10 | E31: м2 | F31: 1.28 | G31: 7 | H31: /м2 | I31: 20.599989 | J31: PAMESA | K31: RLV. COWAN DARK
A32: 370393 | B32: 232 | C32: 5 | D32: 10 | E32: шт | F32: 1 | G32: 30 | H32: /шт | I32: 18.819999 | J32: GOLDEN TILE | K32: ETHNO Мікс Н8Б260
A37: Код | B37: Торговельна марка | C37: Найменування | D37: Група | E37: Базова ціна, грн. | F37: Знижка баз., % | G37: Знижка баз. опт., % | H37: Од. вим. | I37: м2/уп | J37: шт/уп | K37: кг/уп
A38: 398978 | B38: MEGAGRES | C38: ANKARA BR6005 | D38: Зовнішня плитка | F38: 5 | G38: 10 | H38: м2 | I38: 1.44 | J38: 4 | K38: 27.820087
A39: 369685 | B39: PAMESA | C39: COWAN ARGENT | D39: Личкувальна плитка | F39: 5 | G39: 10 | H39: м2 | I39: 1.28 | J39: 7 | K39: 20.599989
A40: 389617 | B40: PAMESA | C40: COWAN LIGHT | D40: Личкувальна плитка | F40: 5 | G40: 10 | H40: м2 | I40: 1.28 | J40: 7 | K40: 20.599989
A41: 369687 | B41: PAMESA | C41: RLV. COWAN DARK | D41: Личкувальна плитка | F41: 5 | G41: 10 | H41: м2 | I41: 1.28 | J41: 7 | K41: 20.599989
A42: 389618 | B42: PAMESA | C42: RLV. COWAN LIGHT | D42: Личкувальна плитка | F42: 5 | G42: 10 | H42: м2 | I42: 1.28 | J42: 7 | K42: 20.599989
A43: 370395 | B43: GOLDEN TILE | C43: ETHNO Мікс Н8Б280 | D43: Декор | F43: 5 | G43: 10 | H43: шт | I43: 1 | J43: 30 | K43: 18.819999
A44: 371225 | B44: GOLDEN TILE | C44: ETHNO Мікс Н8Б270 | D44: Декор | F44: 5 | G44: 10 | H44: шт | I44: 1 | J44: 30 | K44: 18.819999
A45: 371226 | B45: GOLDEN TILE | C45: ETHNO Мікс Н8Б290 | D45: Декор | F45: 5 | G45: 10 | H45: шт | I45: 1 | J45: 30 | K45: 18.819999
A46: 370393 | B46: GOLDEN TILE | C46: ETHNO Мікс Н8Б260 | D46: Декор | F46: 5 | G46: 10 | H46: шт | I46: 1 | J46: 30 | K46: 18.819999
A47: 325927 | B47: ALMERA CERAMICA | C47: MAJOLICA тако | D47: Декор | F47: 5 | G47: 10 | H47: шт | I47: 1 | J47: 35 | K47: 4.38
A48: 124627 | B48: CERSANIT плитка | C48: Грес А 100 сходинка ST** | D48: Сходинка | F48: 5 | G48: 10 | H48: шт | I48: 1 | J48: 18 | K48: 26.319984
A49: 331795 | B49: DELCONCA | C49: SASSOFELTRO A/HSF10 | D49: Личкувальна плитка | F49: 5 | G49: 10 | H49: шт | I49: 1 | J49: 15 | K49: 3.075
A50: 264670 | B50: OPOCZNO | C50: BLACK SATIN | D50: Личкувальна плитка | F50: 5 | G50: 10 | H50: м2 | I50: 1.3 | J50: 13 | K50: 21.320003
A51: 371933 | B51: GOLDEN TILE | C51: STONEHENGE Mod світло-сірий 44G540/44G549 | D51: Декор | F51: 5 | G51: 10 | H51: шт | I51: 1 | J51: 3 | K51: 24.899985
A52: 314337 | B52: SUPER CERAMICA | C52: ESTRATO MARRON | D52: Личкувальна плитка | F52: 5 | G52: 10 | H52: м2 | I52: 1.44 | J52: 12 | K52: 21.900008
A53: 285155 | B53: GOLDEN TILE | C53: КАРРАРА БЕЛЫЙ Е50059 (Е50051) | D53: Личкувальна плитка | F53: 5 | G53: 10 | H53: м2 | I53: 1.44 | J53: 8 | K53: 24.109966
A54: 347557 | B54: GOLDEN TILE | C54: ALLEN WHITE 470570 | D54: Зовнішня плитка | F54: 5 | G54: 10 | H54: м2 | I54: 1.193 | J54: 13 | K54: 27.830823
A55: 265426 | B55: OPOCZNO | C55: BLACK&WHITE PATTERN F | D55: Личкувальна плитка | F55: 5 | G55: 10 | H55: м2 | I55: 1.3 | J55: 13 | K55: 21.320003
A56: 371262 | B56: GOLDEN TILE | C56: ВОЛНА бежевий 4В1830 | D56: Зовнішня плитка | F56: 5 | G56: 10 | H56: м2 | I56: 1.12 | J56: 7 | K56: 20.05001
A57: 348916 | B57: GEOTILES | C57: UT. CHESTER MARFIL | D57: Личкувальна плитка | F57: 5 | G57: 10 | H57: м2 | I57: 1.58 | J57: 9 | K57: 23.00002
A58: 280185 | B58: GOLDEN TILE | C58: PETRARCA БЕЖЕВЫЙ M91051 | D58: Личкувальна плитка | F58: 5 | G58: 10 | H58: м2 | I58: 1.44 | J58: 8 | K58: 24.109966
D59: Зовнішня плитка

Sheet Рахунок
E6: РАХУНОК РОЗДРІБНОГО ПОКУПЦЯ № | U6: =Лист1!B12 -> 206513 | Y6: =NOW() -> 2019-04-16T10:31:55.220
D7: =IF(E6="Реквізити на безготівкову оплату рахунку №",Лист1!H8,"") -> 
D9: =IF(E6="РАХУНОК РОЗДРІБНОГО ПОКУПЦЯ №",Лист1!H5,"") -> 0
D12: =IF(E6="РАХУНОК РОЗДРІБНОГО ПОКУПЦЯ №",Лист1!H7,"") -> 0
B13: № | C13: Артикул | F13: Виробник | X13: =Лист1!F25 -> м2/уп | Z13: К-сть | AC13: Ціна | AF13: Сума, UAH
F14: Найменування | X14: =Лист1!G25 -> шт/уп | Z14: Всього
B15: =Лист1!A1 -> 1 | C15: =Лист1!A26 -> 398978 | F15: =IFERROR(IF(Лист1!J2=0,"",Лист1!J2),"") -> MEGAGRES | X15: =Лист1!F26 -> 1.44 | Z15: =IF(Лист1!D15<0.001,"",Лист1!D15) -> 12.24 | AC15: =IF(Лист1!B26<0.001,"",Лист1!K15) -> 54 | AF15: =IFERROR(Z15*AC15,"") -> 660.96
F16: =IF(Лист1!K2=0,"",Лист1!K2) -> ANKARA BR6005 | X16: =Лист1!G26 -> 4 | Z16: =IF(Лист1!J15<0.001,"",Лист1!J15) -> 8 пак 2 шт
B17: =Лист1!B1 -> 2 | C17: =Лист1!A3 -> 389617 | F17: =IF(Лист1!J3=0,"",Лист1!J3) -> PAMESA | X17: =Лист1!F27 -> 1.28 | Z17: =IF(Лист1!D16<0.001,"",Лист1!D16) -> 55.04 | AC17: =IF(Лист1!B27<0.001,"",Лист1!K16) -> 84 | AF17: =IFERROR(Z17*AC17,"") -> 4623.36
F18: =IF(Лист1!K3=0,"",Лист1!K3) -> COWAN LIGHT | X18: =Лист1!G27 -> 7 | Z18: =IF(Лист1!J16<0.001,"",Лист1!J16) -> 43 пак 0 шт
B19: =Лист1!C1 -> 3 | C19: =Лист1!A4 -> 398978 | F19: =IF(Лист1!J4=0,"",Лист1!J4) -> MEGAGRES | X19: =Лист1!F28 -> 1.44 | Z19: =IF(Лист1!D17<0.001,"",Лист1!D17) -> 12.24 | AC19: =IF(Лист1!B28<0.001,"",Лист1!K17) -> 111 | AF19: =IFERROR(Z19*AC19,"") -> 1358.64
F20: =IF(Лист1!K4=0,"",Лист1!K4) -> ANKARA BR6005 | X20: =Лист1!G28 -> 4 | Z20: =IF(Лист1!J17<0.001,"",Лист1!J17) -> 8 пак 2 шт
B21: =Лист1!D1 -> 4 | C21: =Лист1!A5 -> 124627 | F21: =IF(Лист1!J5=0,"",Лист1!J5) -> CERSANIT плитка | X21: =Лист1!F29 -> 1 | Z21: =IF(Лист1!D18<0.001,"",Лист1!D18) -> 30 | AC21: =IF(Лист1!B29<0.001,"",Лист1!K18) -> 254 | AF21: =IFERROR(Z21*AC21,"") -> 7620
F22: =IF(Лист1!K5=0,"",Лист1!K5) -> Грес А 100 сходинка ST** | X22: =Лист1!G29 -> 18 | Z22: =IF(Лист1!J18<0.001,"",Лист1!J18) -> 30 пак 0 шт
B23: =Лист1!E1 -> 5 | C23: =Лист1!A6 -> 370395 | F23: =IF(Лист1!J6=0,"",Лист1!J6) -> GOLDEN TILE | X23: =Лист1!F30 -> 1 | Z23: =IF(Лист1!D19<0.001,"",Лист1!D19) -> 58 | AC23: =IF(Лист1!B30<0.001,"",Лист1!K19) -> 2221 | AF23: =IFERROR(Z23*AC23,"") -> 128818
F24: =IF(Лист1!K6=0,"",Лист1!K6) -> ETHNO Мікс Н8Б280 | X24: =Лист1!G30 -> 30 | Z24: =IF(Лист1!J19<0.001,"",Лист1!J19) -> 58 пак 0 шт
B25: =Лист1!F1 -> 6 | C25: =Лист1!A7 -> 369687 | F25: =IF(Лист1!J7=0,"",Лист1!J7) -> PAMESA | X25: =Лист1!F31 -> 1.28 | Z25: =IF(Лист1!D20<0.001,"",Лист1!D20) -> 44.06857143 | AC25: =IF(Лист1!B31<0.001,"",Лист1!K20) -> 451 | AF25: =IFERROR(Z25*AC25,"") -> 19874.92571
F26: =IF(Лист1!K7=0,"",Лист1!K7) -> RLV. COWAN DARK | X26: =Лист1!G31 -> 7 | Z26: =IF(Лист1!J20<0.001,"",Лист1!J20) -> 34 пак 3 шт
B27: =Лист1!G1 -> 7 | C27: =Лист1!A8 -> 370393 | F27: =IF(Лист1!J8=0,"",Лист1!J8) -> GOLDEN TILE | X27: =Лист1!F32 -> 1 | Z27: =IF(Лист1!D21<0.001,"",Лист1!D21) -> 22 | AC27: =IF(Лист1!B32<0.001,"",Лист1!K21) -> 232 | AF27: =IFERROR(Z27*AC27,"") -> 5104
F28: =IF(Лист1!K8=0,"",Лист1!K8) -> ETHNO Мікс Н8Б260 | X28: =Лист1!G32 -> 30 | Z28: =IF(Лист1!J21<0.001,"",Лист1!J21) -> 22 пак 0 шт
B29: =Лист1!H1 ->  | C29: =Лист1!A9 ->  | F29: =IF(Лист1!J9=0,"",Лист1!J9) ->  | X29: =Лист1!F33 ->  | Z29: =IF(Лист1!D22<0.001,"",Лист1!D22) ->  | AC29: =IF(Лист1!B33<0.001,"",Лист1!K22) ->  | AF29: =IFERROR(Z29*AC29,"") -> 
F30: =IF(Лист1!K9=0,"",Лист1!K9) ->  | X30: =Лист1!G33 ->  | Z30: =IF(Лист1!J22<0.001,"",Лист1!J22) -> 
B31: =Лист1!I1 ->  | C31: =Лист1!A10 ->  | F31: =IF(Лист1!J10=0,"",Лист1!J10) ->  | X31: =Лист1!F34 ->  | Z31: =IF(Лист1!D23<0.001,"",Лист1!D23) ->  | AC31: =IF(Лист1!B34<0.001,"",Лист1!K23) ->  | AF31: =IFERROR(Z31*AC31,"") -> 
F32: =IF(Лист1!K10=0,"",Лист1!K10) ->  | X32: =Лист1!G34 ->  | Z32: =IF(Лист1!J23<0.001,"",Лист1!J23) -> 
B33: =Лист1!J1 ->  | C33: =Лист1!A11 ->  | F33: =IF(Лист1!J11=0,"",Лист1!J11) ->  | X33: =Лист1!F35 ->  | Z33: =IF(Лист1!D24<0.001,"",Лист1!D24) ->  | AC33: =IF(Лист1!B35<0.001,"",Лист1!K24) ->  | AF33: =IFERROR(Z33*AC33,"") -> 
F34: =IF(Лист1!K11=0,"",Лист1!K11) ->  | X34: =Лист1!G35 ->  | Z34: =IF(Лист1!J24<0.001,"",Лист1!J24) -> 
B35: Отримання | F35: =Лист1!D12 -> Самовивіз | AF35: =Лист1!D13 -> 0
AC36: Всього, UAH | AD36: =SUMIF(AF15:AF35,">0") -> 168059.8857
B44: Ми працюємо | W44: Замовлення вагою вище 150 кг в регіони відправляються партнерською доставкою. Це безпечно та вдвічі дешевже ніж тарифи поштових перевізників.
B45: Пн-Пт 10:00 - 19:00
B46: Сб-Нд 10:00 - 18:00
B48: Постачальник:
B49: Інтернет-магазин Plitholl.com.ua
B50: ФОП Баняс Владислав Васильович
B51: Код ЄДРПОУ: 3359306815
C54: Отримав та перевірив | X54: Рахунок виписав
B58: Плитка
B59: ABSOLUT KERAMIKA 1 | I59: Del Conca 23 | P59: LA FABBRICA 27 | X59: Prissmacer 36
B60: ALELUIA CERAMIC 11 | I60: Dual Gres 41 | P60: LA FAENZA 77 | X60: REALONDA 23
B61: APARICI 46 | I61: EXAGRES 91 | P61: LEONARDO 20 | X61: REVIGRES 16
B62: APE Ceramica 428 | I62: FLAVIKER 22 | P62: LIVIN CERAMICS 3 | X62: REX 9
B63: ASCOT 12 | I63: FLORIM GROUP 5 | P63: LOVE CERAMIC 11 | X63: ROBERTO CAVALLI 19
B64: AZTECA 59 | I64: Fabresa 14 | P64: Lasselsberger Rako 130 | X64: RONDINE 36
B65: Alaplana 103 | I65: GAMBARELLI 4 | P65: MAINZU 83 | X65: Rocersa 84
B66: Alfobel 35 | I66: GEOTILES 196 | P66: MAPISA 6 | X66: SALONI 42
B67: Almera Ceramica 404 | I67: GOLDEN TILE 358 | P67: MARCA CORONA 49 | X67: SDS KERAMIK 41
B68: Argenta Ceramica 131 | I68: GRAND KERAMA 31 | P68: MAYOLICA 14 | X68: SERENISSIMA 18
B69: Ariana 5 | I69: GRANITI FIANDRE 14 | P69: MEGAGRES 90 | X69: SETTECENTO 6
B70: Azulev 47 | I70: GRESMANC 1 | P70: MONOPOLE CERAMICA 79 | X70: Sanchis 5
B71: BALDOCER 119 | I71: Gemma 39 | P71: NATUCER 1 | X71: Super Ceramica 23
B72: BESTILE 84 | I72: Goldencer 47 | P72: NOVABELL 115 | X72: TERMAL SERAMIK 8
B73: Bellavista Ceramica 47 | I73: Gresan 8 | P73: NOVOGRES 13 | X73: Tau Ceramica 9
B74: CAESAR 5 | I74: IBERO 55 | P74: NOWA GALA 12 | X74: Unicom Starker 8
B75: CERAMICA DESEO 12 | I75: IMSO CERAMICA 1 | P75: Newker 13 | X75: VALLELUNGA 11
B76: CERASARDA 1 | I76: IRIS 1 | P76: OPOCZNO PL 4 | X76: VENIS 159
B77: CERRAD 95 | I77: ITALGRANITI 10 | P77: OPOCZNO UA 377 | X77: VIVES 69
B78: CERROL 16 | I78: ITT CERAMIC 24 | P78: OSET 56 | X78: Venus 12
B79: CRISTACER 4 | I79: Imola Ceramica 155 | P79: OVERLAND 6 | X79: Zeus Ceramica 132
B80: Ceramica Gomez 22 | I80: Impronta 50 | P80: Oceano 14 | X80: АТЕМ 48
B81: Ceramica de LUX 27 | I81: KITO 5 | P81: PAMESA 278 | X81: Агромат-Декор 6
B82: Ceranosa 1 | I82: Keramo Rosso 3 | P82: PERONDA 209 | X82: Берёзакерамика 34
B83: Cersanit 308 | I83: Keratile 9 | P83: Piemme 3 | X83: КІП КЕРАМІКА 9
B84: Cicogres 27 | I84: L'Antic Colonial 11 | P84: Porcelanite Dos 5 | X84: Керамика Полесье 32
B86: Ламінат | K86: Паркетная дошка | R86: Массивна доска | Y86: Вінил
B87: Berry Alloc | K87: Boen | R87: DomCabinet | Y87: DomCabinet
B88: DomCabinet | K88: Skema | Y88: LOC
B89: Pergo | K89: Литва | Y89: Skema
B90: Quick Step | Y90: Berry Alloc
B91: Schöner | Y91: Quick Step
B92: Skema
B93: Villeroy & Boch
B94: Бюджетная коллекция
O96: САНТЕХНІКА
B97: ACO 83 | K97: FLAMINIA 1 | S97: KOLO 247 | Y97: Pax 13
B98: AM.PM 239 | K98: Franke 8 | S98: KOS 1 | Y98: Porta 3
B99: Appollo 17 | K99: GBGroup 4 | S99: Kaldewei 37 | Y99: RIHO 62
B100: Axor 235 | K100: GENWEC 21 | S100: Kludi 346 | Y100: ROYO 45
B101: BRAVAT 1 | K101: GESSI 40 | S101: LAUFEN 89 | Y101: SIMAS 57
B102: Balteco 6 | K102: Geberit 105 | S102: Labor Legno 38 | Y102: San Swiss 96
B103: Bette 13 | K103: Gentry Home 1 | S103: Langberger 73 | Y103: Smavit 9
B104: Bossini 1 | K104: Goldman 1 | S104: MARGAROLI 14 | Y104: Soler&Palau 4
B105: CIELO 29 | K105: Grohe 309 | S105: Mario 30 | Y105: TREESSE 3
B106: CISAL 2 | K106: Gustavsberg 26 | S106: NIC Design 2 | Y106: Tece 83
B107: Cersanit 436 | K107: HUPPE 2 | S107: NOKEN 1 | Y107: Terranit 1
B108: DEVIT 731 | K108: Hansgrohe 590 | S108: Nicoll 13 | Y108: VAGNERPLAST 25
B109: DIETSCHE 1 | K109: IDO 26 | S109: OLIVEIRA 42 | Y109: Viega 36
B110: DURAVIT 22 | K110: INSTAL PROJEKT 40 | S110: ORAS 78 | Y110: Villeroy&Boch 185
B111: Damixa 34 | K111: JACUZZI 1 | S111: PAA 29 | Y111: WGT 6
B112: EMCO 32 | K112: Jacob Delafon 7 | S112: PRIMERA 133 | Y112: Zehnder 1
B113: FERRO 99 | K113: KERAMAG 69 | S113: Paffoni 1 | Y113: Аква Родос 120
Y114: ТОВ "MCH ІНЖИНІРИНГ" 2
